[Event "*** Titled Tuesday 3|2 Blitz"]
[Site "Chess.com"]
[Date "2015.08.04"]
[Round "9"]
[White "KyronGriffith"]
[Black "ER404"]
[Result "1-0"]
[WhiteElo "2228"]
[BlackElo "2035"]
[TimeControl "180+2"]
[EndTime "13:25:42 PDT"]
[Termination "KyronGriffith won by resignation"]

1. e4 {[%clk 0:03:01.9]} 1... c6 {[%clk 0:03:01.4]} 2. d4 {[%clk 0:03:01.7]}
2... d5 {[%clk 0:03:03.3]} 3. e5 {[%clk 0:03:03.4]} 3... Bf5 {[%clk 0:03:04]} 4.
h4 {[%clk 0:03:05]} 4... h5 {[%clk 0:03:03.8]} 5. c4 {[%clk 0:03:06.6]} 5... e6
{[%clk 0:03:05.3]} 6. Nc3 {[%clk 0:03:07.9]} 6... Nd7 {[%clk 0:03:05.1]} 7. cxd5
{[%clk 0:03:09.4]} 7... cxd5 {[%clk 0:02:59.7]} 8. Bd3 {[%clk 0:03:10.9]} 8...
Ne7 {[%clk 0:02:41.7]} 9. Bg5 {[%clk 0:03:10]} 9... Bxd3 {[%clk 0:02:30.5]} 10.
Qxd3 {[%clk 0:03:11.9]} 10... f6 {[%clk 0:02:29.6]} 11. exf6 {[%clk 0:02:47.4]}
11... gxf6 {[%clk 0:02:29.7]} 12. Bd2 {[%clk 0:02:40.7]} 12... Nf5 {[%clk
0:02:10.3]} 13. Nxd5 {[%clk 0:02:35.9]} 13... Bd6 {[%clk 0:02:00.9]} 14. Ne2
{[%clk 0:01:52.6]} 14... Rg8 {[%clk 0:01:59.1]} 15. Ndf4 {[%clk 0:01:53.4]}
15... Qe7 {[%clk 0:01:55.2]} 16. g3 {[%clk 0:01:49.2]} 16... O-O-O {[%clk
0:01:50.6]} 17. d5 {[%clk 0:01:41.2]} 17... exd5 {[%clk 0:01:27.9]} 18. Qxf5
{[%clk 0:01:40.9]} 18... Rge8 {[%clk 0:01:22.6]} 19. O-O {[%clk 0:01:34.4]}
19... Kb8 {[%clk 0:01:14.7]} 20. Rfe1 {[%clk 0:01:23.4]} 20... Ne5 {[%clk
0:01:15.6]} 21. Nxd5 {[%clk 0:01:17.5]} 21... Qf7 {[%clk 0:01:09.1]} 22. Nec3
{[%clk 0:01:14.2]} 22... Bc5 {[%clk 0:01:04.9]} 23. Bf4 {[%clk 0:01:09.3]} 23...
Rxd5 {[%clk 0:00:51.1]} 24. Nxd5 {[%clk 0:01:11.2]} 24... Qxd5 {[%clk
0:00:51.8]} 25. Qxf6 {[%clk 0:01:12.1]} 25... Bd4 {[%clk 0:00:33.8]} 26. Rad1
{[%clk 0:01:04.8]} 26... Ka8 {[%clk 0:00:18.2]} 27. Bxe5 {[%clk 0:01:05.6]}
27... Rxe5 {[%clk 0:00:18.8]} 1-0

[Event "*** Titled Tuesday 3|2 Blitz"]
[Site "Chess.com"]
[Date "2015.08.04"]
[Round "9"]
[White "ViktoriaGloriam"]
[Black "samolo"]
[Result "1-0"]
[WhiteElo "2222"]
[BlackElo "2482"]
[TimeControl "180+2"]
[EndTime "13:26:01 PDT"]
[Termination "ViktoriaGloriam won by resignation"]

1. e4 {[%clk 0:03:00.4]} 1... g6 {[%clk 0:03:01.1]} 2. d4 {[%clk 0:03:01.1]}
2... Bg7 {[%clk 0:03:02.7]} 3. Nc3 {[%clk 0:03:02.7]} 3... d6 {[%clk 0:03:04.3]}
4. f4 {[%clk 0:03:04.3]} 4... a6 {[%clk 0:03:05.8]} 5. Nf3 {[%clk 0:02:43.6]}
5... b5 {[%clk 0:03:05]} 6. a3 {[%clk 0:02:43.6]} 6... Bb7 {[%clk 0:03:06.4]} 7.
Be3 {[%clk 0:02:44.3]} 7... Nd7 {[%clk 0:03:07.9]} 8. Bd3 {[%clk 0:02:33.9]}
8... c5 {[%clk 0:03:07.1]} 9. e5 {[%clk 0:02:31.2]} 9... cxd4 {[%clk 0:03:05.7]}
10. Bxd4 {[%clk 0:02:28]} 10... Bxf3 {[%clk 0:03:05.7]} 11. Qxf3 {[%clk
0:02:28.1]} 11... dxe5 {[%clk 0:03:07]} 12. fxe5 {[%clk 0:02:22.9]} 12... Bxe5
{[%clk 0:03:07.5]} 13. Be4 {[%clk 0:02:03.2]} 13... Bxd4 {[%clk 0:02:52.5]} 14.
Bxa8 {[%clk 0:01:55.1]} 14... Ngf6 {[%clk 0:02:51]} 15. Bb7 {[%clk 0:01:50.9]}
15... Qb6 {[%clk 0:02:48.7]} 16. Nd5 {[%clk 0:01:43]} 16... Nxd5 {[%clk
0:02:48.6]} 17. Bxd5 {[%clk 0:01:25.8]} 17... Ne5 {[%clk 0:02:32.2]} 18. Qb3
{[%clk 0:01:26.3]} 18... e6 {[%clk 0:02:28.3]} 19. O-O-O {[%clk 0:01:23.1]}
19... O-O {[%clk 0:02:27.7]} 20. Bf3 {[%clk 0:01:20.3]} 20... Rc8 {[%clk
0:02:25.9]} 21. Be2 {[%clk 0:01:18.3]} 21... Nc6 {[%clk 0:02:12.8]} 22. Rhf1
{[%clk 0:01:17.8]} 22... Qc7 {[%clk 0:02:06.9]} 23. Kb1 {[%clk 0:01:16.1]} 23...
Kg7 {[%clk 0:02:06.8]} 24. c3 {[%clk 0:01:12.3]} 24... Be5 {[%clk 0:02:07.1]}
25. g3 {[%clk 0:01:08.7]} 25... Ne7 {[%clk 0:02:04.7]} 26. Rd3 {[%clk
0:01:03.8]} 26... Nd5 {[%clk 0:02:01.4]} 27. Rdf3 {[%clk 0:01:04.1]} 27... f5
{[%clk 0:02:00.8]} 28. g4 {[%clk 0:00:58.2]} 28... Nf6 {[%clk 0:01:39.6]} 29.
Qxe6 {[%clk 0:00:55.2]} 29... Nxg4 {[%clk 0:01:35.7]} 30. Rd3 {[%clk 0:00:51.1]}
30... Rd8 {[%clk 0:01:14.2]} 31. Rxd8 {[%clk 0:00:46.8]} 31... Qxd8 {[%clk
0:01:16.1]} 32. h3 {[%clk 0:00:48.3]} 32... Qf6 {[%clk 0:01:03.7]} 33. Qd7+
{[%clk 0:00:44.5]} 33... Kh6 {[%clk 0:01:03.6]} 34. hxg4 {[%clk 0:00:44.8]}
34... f4 {[%clk 0:01:04.4]} 35. Rh1+ {[%clk 0:00:37.1]} 35... Kg5 {[%clk
0:01:05.4]} 36. Qxh7 {[%clk 0:00:39]} 1-0

[Event "*** Titled Tuesday 3|2 Blitz"]
[Site "Chess.com"]
[Date "2015.08.04"]
[Round "9"]
[White "Konavets"]
[Black "Storne89"]
[Result "1-0"]
[WhiteElo "2491"]
[BlackElo "2475"]
[TimeControl "180+2"]
[EndTime "13:26:48 PDT"]
[Termination "Konavets won by resignation"]

1. e4 {[%clk 0:02:25.2]} 1... e5 {[%clk 0:03:00.3]} 2. Nf3 {[%clk 0:02:24.3]}
2... Nc6 {[%clk 0:03:01.5]} 3. Bb5 {[%clk 0:02:25.6]} 3... a6 {[%clk 0:03:02.9]}
4. Ba4 {[%clk 0:02:27.2]} 4... Nge7 {[%clk 0:03:04.4]} 5. c3 {[%clk 0:02:28]}
5... g6 {[%clk 0:03:05.6]} 6. O-O {[%clk 0:02:29.1]} 6... Bg7 {[%clk 0:03:06.4]}
7. Re1 {[%clk 0:02:30.6]} 7... O-O {[%clk 0:03:07]} 8. d4 {[%clk 0:02:31.9]}
8... exd4 {[%clk 0:03:07.3]} 9. cxd4 {[%clk 0:02:33.8]} 9... b5 {[%clk
0:03:08.6]} 10. Bc2 {[%clk 0:02:34]} 10... d6 {[%clk 0:03:09.8]} 11. h3 {[%clk
0:02:31.5]} 11... Na5 {[%clk 0:02:59.6]} 12. Nc3 {[%clk 0:02:30.6]} 12... c5
{[%clk 0:02:58.4]} 13. dxc5 {[%clk 0:02:26.7]} 13... dxc5 {[%clk 0:02:56.5]} 14.
Qxd8 {[%clk 0:02:28.6]} 14... Rxd8 {[%clk 0:02:58.1]} 15. Bg5 {[%clk 0:02:30.5]}
15... Re8 {[%clk 0:02:43.4]} 16. Rad1 {[%clk 0:02:22.1]} 16... Be6 {[%clk
0:02:31.7]} 17. e5 {[%clk 0:02:06.7]} 17... h6 {[%clk 0:02:21.8]} 18. Bh4 {[%clk
0:02:06]} 18... g5 {[%clk 0:02:20.4]} 19. Bg3 {[%clk 0:02:06.6]} 19... Nf5
{[%clk 0:02:01.8]} 20. Bh2 {[%clk 0:02:01.7]} 20... Nb7 {[%clk 0:01:58.1]} 21.
Ne4 {[%clk 0:01:56.7]} 21... Rad8 {[%clk 0:01:58.7]} 22. g4 {[%clk 0:01:56.8]}
22... Nd4 {[%clk 0:01:56.8]} 23. Nxd4 {[%clk 0:01:57.6]} 23... cxd4 {[%clk
0:01:57.8]} 24. Bb3 {[%clk 0:01:57.2]} 24... Kf8 {[%clk 0:01:51.2]} 25. Nd6
{[%clk 0:01:48.2]} 25... Nxd6 {[%clk 0:01:50.4]} 26. exd6 {[%clk 0:01:50.1]}
26... Bxb3 {[%clk 0:01:48.2]} 27. axb3 {[%clk 0:01:49.4]} 27... Rxe1+ {[%clk
0:01:19.5]} 28. Rxe1 {[%clk 0:01:51.3]} 28... Bf6 {[%clk 0:01:19.7]} 29. Kf1
{[%clk 0:01:48.6]} 29... Rc8 {[%clk 0:01:01.5]} 30. Ra1 {[%clk 0:01:09.5]} 30...
Rc6 {[%clk 0:00:53.6]} 31. Ke2 {[%clk 0:01:10.6]} 31... Rc2+ {[%clk 0:00:49.4]}
32. Kf3 {[%clk 0:01:07]} 32... Rxb2 {[%clk 0:00:39.9]} 33. Rxa6 {[%clk
0:01:07.3]} 33... Rxb3+ {[%clk 0:00:41.5]} 34. Ke4 {[%clk 0:01:05.3]} 34... Rxh3
{[%clk 0:00:41]} 35. Ra8+ {[%clk 0:00:55.1]} 35... Kg7 {[%clk 0:00:42.1]} 36.
Be5 {[%clk 0:00:56.3]} 36... Rh1 {[%clk 0:00:09.8]} 37. Bxf6+ {[%clk 0:00:55.2]}
37... Kxf6 {[%clk 0:00:10.9]} 38. d7 {[%clk 0:00:57.1]} 38... Re1+ {[%clk
0:00:10.8]} 39. Kd5 {[%clk 0:00:58.2]} 1-0

[Event "*** Titled Tuesday 3|2 Blitz"]
[Site "Chess.com"]
[Date "2015.08.04"]
[Round "9"]
[White "CraiggoryC"]
[Black "PauloCesarCosta"]
[Result "1-0"]
[WhiteElo "2026"]
[BlackElo "2011"]
[TimeControl "180+2"]
[EndTime "13:27:07 PDT"]
[Termination "CraiggoryC won on time"]

1. e4 {[%clk 0:03:01.9]} 1... e6 {[%clk 0:03:00.8]} 2. d4 {[%clk 0:03:02.2]}
2... d5 {[%clk 0:03:01.6]} 3. Nd2 {[%clk 0:03:03.3]} 3... Nf6 {[%clk 0:03:01.9]}
4. e5 {[%clk 0:03:04.5]} 4... Nfd7 {[%clk 0:03:02.8]} 5. Bd3 {[%clk 0:03:05.6]}
5... c5 {[%clk 0:03:04.1]} 6. c3 {[%clk 0:03:07.3]} 6... Nc6 {[%clk 0:03:05.5]}
7. Ngf3 {[%clk 0:03:08.7]} 7... Be7 {[%clk 0:03:02.3]} 8. O-O {[%clk 0:03:09]}
8... O-O {[%clk 0:03:01.8]} 9. Re1 {[%clk 0:03:01.2]} 9... cxd4 {[%clk
0:03:00.9]} 10. cxd4 {[%clk 0:03:01.8]} 10... Qb6 {[%clk 0:02:55.1]} 11. Nf1
{[%clk 0:02:50.5]} 11... Nb4 {[%clk 0:02:26.9]} 12. Bb1 {[%clk 0:02:48.7]} 12...
a5 {[%clk 0:02:23.5]} 13. a3 {[%clk 0:02:32.3]} 13... Nc6 {[%clk 0:02:21.3]} 14.
Ng3 {[%clk 0:02:30.8]} 14... f6 {[%clk 0:02:00.8]} 15. exf6 {[%clk 0:01:32.1]}
15... Nxf6 {[%clk 0:02:00.9]} 16. Qd3 {[%clk 0:01:14.5]} 16... g6 {[%clk
0:01:55.5]} 17. Bh6 {[%clk 0:01:09.3]} 17... Re8 {[%clk 0:01:49.2]} 18. Re2
{[%clk 0:01:01.9]} 18... Bf8 {[%clk 0:01:34.5]} 19. Bxf8 {[%clk 0:00:56.1]}
19... Rxf8 {[%clk 0:01:33.2]} 20. h4 {[%clk 0:00:54.2]} 20... Qa6 {[%clk
0:00:59.3]} 21. Qe3 {[%clk 0:00:37.6]} 21... Bd7 {[%clk 0:00:50.1]} 22. h5
{[%clk 0:00:34.4]} 22... Kg7 {[%clk 0:00:39]} 23. hxg6 {[%clk 0:00:25.4]} 23...
hxg6 {[%clk 0:00:39.5]} 24. Qg5 {[%clk 0:00:23.3]} 24... Ne4 {[%clk 0:00:33.5]}
25. Rxe4 {[%clk 0:00:12.4]} 25... dxe4 {[%clk 0:00:33.1]} 26. Bxe4 {[%clk
0:00:12.8]} 26... Be8 {[%clk 0:00:19.5]} 27. Nh5+ {[%clk 0:00:13.8]} 27... Kh7
{[%clk 0:00:12.9]} 28. Nf6+ {[%clk 0:00:13.9]} 28... Rxf6 {[%clk 0:00:07.1]} 29.
Qxf6 {[%clk 0:00:14.8]} 29... Qe2 {[%clk 0:00:03.3]} 30. Ng5+ {[%clk 0:00:15.3]}
30... Kg8 {[%clk 0:00:02.1]} 31. Qxe6+ {[%clk 0:00:16]} 31... Kg7 {[%clk
0:00:02.2]} 32. Bxc6 {[%clk 0:00:12.8]} 1-0

[Event "*** Titled Tuesday 3|2 Blitz"]
[Site "Chess.com"]
[Date "2015.08.04"]
[Round "9"]
[White "NowInChess"]
[Black "Fawolizzo"]
[Result "1-0"]
[WhiteElo "1993"]
[BlackElo "1910"]
[TimeControl "180+2"]
[EndTime "13:27:11 PDT"]
[Termination "NowInChess won on time"]

1. e4 {[%clk 0:02:55.9]} 1... c5 {[%clk 0:03:00.4]} 2. d3 {[%clk 0:02:56.2]}
2... d6 {[%clk 0:03:00.9]} 3. g3 {[%clk 0:02:57.4]} 3... Nc6 {[%clk 0:03:01.9]}
4. Bg2 {[%clk 0:02:58.4]} 4... g6 {[%clk 0:03:03.2]} 5. f4 {[%clk 0:02:59.1]}
5... Bg7 {[%clk 0:03:04.1]} 6. Nf3 {[%clk 0:03:00]} 6... e6 {[%clk 0:03:04.6]}
7. O-O {[%clk 0:03:00.8]} 7... Nge7 {[%clk 0:03:05.2]} 8. c3 {[%clk 0:03:01.6]}
8... O-O {[%clk 0:03:05.3]} 9. Be3 {[%clk 0:02:56.6]} 9... b6 {[%clk 0:03:05.4]}
10. d4 {[%clk 0:02:57.2]} 10... cxd4 {[%clk 0:03:04.2]} 11. cxd4 {[%clk
0:02:58]} 11... d5 {[%clk 0:03:05.2]} 12. e5 {[%clk 0:02:59]} 12... Ba6 {[%clk
0:03:01.2]} 13. Re1 {[%clk 0:02:59.4]} 13... Rc8 {[%clk 0:02:59.8]} 14. Nc3
{[%clk 0:02:58.2]} 14... Nf5 {[%clk 0:02:54.3]} 15. Bf2 {[%clk 0:02:58.5]} 15...
b5 {[%clk 0:02:51.8]} 16. g4 {[%clk 0:02:34]} 16... Nfe7 {[%clk 0:02:50.1]} 17.
Bh4 {[%clk 0:02:20.4]} 17... Qb6 {[%clk 0:02:46.7]} 18. Qd2 {[%clk 0:02:10]}
18... Rfe8 {[%clk 0:02:37.7]} 19. Bf6 {[%clk 0:02:01.4]} 19... Bf8 {[%clk
0:02:32.2]} 20. Qf2 {[%clk 0:01:58.4]} 20... Nb4 {[%clk 0:02:23.4]} 21. Bf1
{[%clk 0:01:25.3]} 21... Rc4 {[%clk 0:02:12.7]} 22. a3 {[%clk 0:01:15.3]} 22...
Rxc3 {[%clk 0:02:11.2]} 23. bxc3 {[%clk 0:01:11.2]} 23... Nbc6 {[%clk
0:02:10.8]} 24. Qh4 {[%clk 0:01:05.5]} 24... Na5 {[%clk 0:01:41.8]} 25. Ng5
{[%clk 0:01:01.9]} 25... h6 {[%clk 0:01:40.8]} 26. Re3 {[%clk 0:00:40.6]} 26...
Nc4 {[%clk 0:01:26.4]} 27. Rh3 {[%clk 0:00:31]} 27... Nf5 {[%clk 0:00:57.1]} 28.
gxf5 {[%clk 0:00:21.1]} 28... h5 {[%clk 0:00:55.8]} 29. fxg6 {[%clk 0:00:18.7]}
29... fxg6 {[%clk 0:00:55]} 30. Be2 {[%clk 0:00:19.1]} 30... Bg7 {[%clk
0:00:25.1]} 31. Bxh5 {[%clk 0:00:15.6]} 31... gxh5 {[%clk 0:00:23.5]} 32. Qxh5
{[%clk 0:00:16]} 32... Qb7 {[%clk 0:00:19.9]} 33. Qxe8+ {[%clk 0:00:16.2]} 1-0

[Event "*** Titled Tuesday 3|2 Blitz"]
[Site "Chess.com"]
[Date "2015.08.04"]
[Round "9"]
[White "fancyknightmaneuvers"]
[Black "alturas_pacificas"]
[Result "0-1"]
[WhiteElo "2160"]
[BlackElo "2090"]
[TimeControl "180+2"]
[EndTime "13:27:28 PDT"]
[Termination "alturas_pacificas won by resignation"]

1. e4 {[%clk 0:03:01.9]} 1... c6 {[%clk 0:02:56.2]} 2. d4 {[%clk 0:02:54.3]}
2... d5 {[%clk 0:02:56.9]} 3. Nc3 {[%clk 0:02:53.5]} 3... dxe4 {[%clk
0:02:57.3]} 4. Nxe4 {[%clk 0:02:55.4]} 4... Nf6 {[%clk 0:02:58]} 5. Nxf6+ {[%clk
0:02:54.4]} 5... gxf6 {[%clk 0:02:59]} 6. Nf3 {[%clk 0:02:55.5]} 6... h5 {[%clk
0:02:58.8]} 7. Bf4 {[%clk 0:02:49.8]} 7... h4 {[%clk 0:02:48]} 8. h3 {[%clk
0:02:39.6]} 8... Bf5 {[%clk 0:02:47.1]} 9. Bd3 {[%clk 0:02:28.6]} 9... Bxd3
{[%clk 0:02:46]} 10. Qxd3 {[%clk 0:02:30.5]} 10... e6 {[%clk 0:02:46.8]} 11.
O-O-O {[%clk 0:02:31]} 11... Bd6 {[%clk 0:02:46.3]} 12. Qe4 {[%clk 0:02:23.1]}
12... Na6 {[%clk 0:02:37.6]} 13. Rhe1 {[%clk 0:02:19.3]} 13... Qc7 {[%clk
0:02:34.6]} 14. Bxd6 {[%clk 0:02:19.5]} 14... Qxd6 {[%clk 0:02:35.6]} 15. Nxh4
{[%clk 0:02:19.7]} 15... O-O-O {[%clk 0:02:16.5]} 16. Nf3 {[%clk 0:02:18.6]}
16... Nc7 {[%clk 0:02:13.5]} 17. Kb1 {[%clk 0:02:16.4]} 17... Rdg8 {[%clk
0:02:07.5]} 18. Rg1 {[%clk 0:02:12.9]} 18... Nd5 {[%clk 0:02:05.6]} 19. h4
{[%clk 0:02:05.6]} 19... Qf4 {[%clk 0:02:03.9]} 20. Qxf4 {[%clk 0:02:02.3]}
20... Nxf4 {[%clk 0:02:05.8]} 21. g3 {[%clk 0:02:03.6]} 21... Nd5 {[%clk
0:02:03.1]} 22. c4 {[%clk 0:02:00.2]} 22... Ne7 {[%clk 0:02:00.7]} 23. Nd2
{[%clk 0:01:57.9]} 23... Nf5 {[%clk 0:02:00.1]} 24. Ne4 {[%clk 0:01:58.5]} 24...
Rh6 {[%clk 0:01:58]} 25. Kc2 {[%clk 0:01:58.1]} 25... Kc7 {[%clk 0:01:58]} 26.
Kc3 {[%clk 0:01:59.2]} 26... Nd6 {[%clk 0:01:58.6]} 27. Nxd6 {[%clk 0:01:35.6]}
27... Kxd6 {[%clk 0:02:00.5]} 28. Rde1 {[%clk 0:01:36.8]} 28... f5 {[%clk
0:02:00.3]} 29. Re5 {[%clk 0:01:30.4]} 29... Rxh4 {[%clk 0:01:59.9]} 30. c5+
{[%clk 0:01:24.3]} 30... Kd7 {[%clk 0:01:55.6]} 31. Ree1 {[%clk 0:00:48.1]}
31... Rh2 {[%clk 0:01:55.2]} 32. Ref1 {[%clk 0:00:46.9]} 32... f4 {[%clk
0:01:48.9]} 33. g4 {[%clk 0:00:42.2]} 33... Ke7 {[%clk 0:01:42.6]} 34. Kd3
{[%clk 0:00:39.6]} 34... Kf6 {[%clk 0:01:39]} 35. Ke4 {[%clk 0:00:39.5]} 35...
Kg5 {[%clk 0:01:37.3]} 36. Kf3 {[%clk 0:00:37.9]} 36... Rh3+ {[%clk 0:01:31.6]}
37. Ke4 {[%clk 0:00:30.1]} 37... Rd8 {[%clk 0:01:29.8]} 38. Rg2 {[%clk
0:00:25.7]} 38... f6 {[%clk 0:01:25.9]} 39. Rgg1 {[%clk 0:00:24.8]} 39... a5
{[%clk 0:01:24]} 40. Rh1 {[%clk 0:00:15.5]} 40... Rdh8 {[%clk 0:01:20.2]} 41.
Rhg1 {[%clk 0:00:15.9]} 41... Rd8 {[%clk 0:01:19.7]} 42. Rg2 {[%clk 0:00:14.1]}
42... Rd5 {[%clk 0:01:18.8]} 43. Rgg1 {[%clk 0:00:15.2]} 43... Rd7 {[%clk
0:01:15.6]} 44. a3 {[%clk 0:00:14.7]} 44... a4 {[%clk 0:01:16]} 45. Rh1 {[%clk
0:00:12.6]} 45... Rdh7 {[%clk 0:01:16.2]} 46. Rxh3 {[%clk 0:00:10]} 46... Rxh3
{[%clk 0:01:17.6]} 47. f3 {[%clk 0:00:10.9]} 47... Rh2 {[%clk 0:01:16.3]} 48.
Rg1 {[%clk 0:00:11.6]} 48... Rxb2 {[%clk 0:01:16]} 49. Rh1 {[%clk 0:00:13.1]}
49... Re2+ {[%clk 0:01:16.4]} 50. Kd3 {[%clk 0:00:14.1]} 50... Re3+ {[%clk
0:01:17.9]} 51. Kd2 {[%clk 0:00:15.6]} 51... Rxf3 {[%clk 0:01:19.3]} 52. Re1
{[%clk 0:00:16.7]} 52... Re3 {[%clk 0:01:18]} 53. Rg1 {[%clk 0:00:17.5]} 53...
e5 {[%clk 0:01:17.9]} 54. dxe5 {[%clk 0:00:18]} 54... fxe5 {[%clk 0:01:19.8]}
55. Rh1 {[%clk 0:00:17.6]} 55... Kxg4 {[%clk 0:01:20.3]} 0-1

[Event "*** Titled Tuesday 3|2 Blitz"]
[Site "Chess.com"]
[Date "2015.08.04"]
[Round "9"]
[White "mortalbovine"]
[Black "BjarkeSahl"]
[Result "0-1"]
[WhiteElo "1767"]
[BlackElo "2105"]
[TimeControl "180+2"]
[EndTime "13:27:54 PDT"]
[Termination "BjarkeSahl won by resignation"]

1. e4 {[%clk 0:03:01.9]} 1... c5 {[%clk 0:02:57.4]} 2. d4 {[%clk 0:03:00.8]}
2... cxd4 {[%clk 0:02:58.1]} 3. c3 {[%clk 0:03:02]} 3... d5 {[%clk 0:02:59.7]}
4. e5 {[%clk 0:02:47]} 4... Nc6 {[%clk 0:02:48.4]} 5. cxd4 {[%clk 0:02:45.7]}
5... Bf5 {[%clk 0:02:48.9]} 6. Nf3 {[%clk 0:02:34.3]} 6... e6 {[%clk 0:02:47.4]}
7. Bd3 {[%clk 0:02:33.6]} 7... Nge7 {[%clk 0:02:46.5]} 8. O-O {[%clk 0:02:33.6]}
8... Bxd3 {[%clk 0:02:44.4]} 9. Qxd3 {[%clk 0:02:33.7]} 9... Nf5 {[%clk
0:02:46.1]} 10. Nc3 {[%clk 0:02:29.7]} 10... Be7 {[%clk 0:02:47.5]} 11. Be3
{[%clk 0:02:28]} 11... O-O {[%clk 0:02:46.2]} 12. Rac1 {[%clk 0:02:14.9]} 12...
f6 {[%clk 0:02:47.6]} 13. Bf4 {[%clk 0:02:04.2]} 13... g5 {[%clk 0:02:21.2]} 14.
exf6 {[%clk 0:01:53.3]} 14... Bxf6 {[%clk 0:02:04.2]} 15. Be5 {[%clk 0:01:53.7]}
15... g4 {[%clk 0:01:59.8]} 16. Bxf6 {[%clk 0:01:37.5]} 16... Qxf6 {[%clk
0:01:58.1]} 17. Ne5 {[%clk 0:01:35.8]} 17... Nxe5 {[%clk 0:01:55.4]} 18. dxe5
{[%clk 0:01:36.3]} 18... Qxe5 {[%clk 0:01:56.1]} 19. Rfe1 {[%clk 0:01:36.8]}
19... Qf6 {[%clk 0:01:54.5]} 20. Re2 {[%clk 0:01:19.4]} 20... Rae8 {[%clk
0:01:51.7]} 21. Rce1 {[%clk 0:01:18.5]} 21... Nd4 {[%clk 0:01:38.5]} 22. Re5
{[%clk 0:01:11]} 22... Qxf2+ {[%clk 0:01:36.5]} 23. Kh1 {[%clk 0:01:07]} 23...
Nf5 {[%clk 0:01:26.8]} 24. Nxd5 {[%clk 0:00:51.7]} 24... Nh4 {[%clk 0:00:51.1]}
25. Qe2 {[%clk 0:00:37.1]} 25... Qxe2 {[%clk 0:00:37]} 26. R5xe2 {[%clk
0:00:39]} 26... g3 {[%clk 0:00:33.5]} 27. hxg3 {[%clk 0:00:31.1]} 27... Nf5
{[%clk 0:00:32.4]} 28. Rxe6 {[%clk 0:00:28.3]} 28... Nxg3+ {[%clk 0:00:31]} 29.
Kh2 {[%clk 0:00:27]} 29... Nf1+ {[%clk 0:00:31.4]} 30. Kg1 {[%clk 0:00:19]}
30... Rxe6 {[%clk 0:00:31.6]} 31. Rxe6 {[%clk 0:00:19]} 31... Ng3 {[%clk
0:00:29.1]} 32. Re7 {[%clk 0:00:19.7]} 32... Rf7 {[%clk 0:00:29.9]} 33. Rxf7
{[%clk 0:00:19.5]} 33... Kxf7 {[%clk 0:00:31]} 34. Kf2 {[%clk 0:00:20.3]} 34...
Nf5 {[%clk 0:00:29.3]} 35. Kf3 {[%clk 0:00:20.8]} 35... Ke6 {[%clk 0:00:28.6]}
36. Nf4+ {[%clk 0:00:21.7]} 36... Ke5 {[%clk 0:00:28.6]} 37. Nd3+ {[%clk
0:00:22.7]} 37... Kd4 {[%clk 0:00:29.1]} 38. Nf4 {[%clk 0:00:21.2]} 38... Nd6
{[%clk 0:00:27.1]} 39. Ne6+ {[%clk 0:00:21.2]} 39... Kd3 {[%clk 0:00:27.3]} 40.
Nc5+ {[%clk 0:00:22]} 40... Kc2 {[%clk 0:00:29]} 41. b3 {[%clk 0:00:19.4]} 41...
Kb2 {[%clk 0:00:29.2]} 42. a4 {[%clk 0:00:18.3]} 42... b6 {[%clk 0:00:30.5]} 43.
Ne6 {[%clk 0:00:14.5]} 43... Kxb3 {[%clk 0:00:31.9]} 44. Nf8 {[%clk 0:00:14.9]}
44... h6 {[%clk 0:00:32.7]} 45. Kg4 {[%clk 0:00:14.6]} 45... Kxa4 {[%clk
0:00:34.3]} 46. Kh5 {[%clk 0:00:15.7]} 46... b5 {[%clk 0:00:35.7]} 47. Kxh6
{[%clk 0:00:16.7]} 47... b4 {[%clk 0:00:37]} 48. Ne6 {[%clk 0:00:17.3]} 48... b3
{[%clk 0:00:38.3]} 49. Nc5+ {[%clk 0:00:17.3]} 49... Ka3 {[%clk 0:00:37.8]} 50.
Nxb3 {[%clk 0:00:18.4]} 50... Kxb3 {[%clk 0:00:38.7]} 51. g4 {[%clk 0:00:19.7]}
51... a5 {[%clk 0:00:39.9]} 52. g5 {[%clk 0:00:18.5]} 52... Nf7+ {[%clk
0:00:41]} 53. Kg6 {[%clk 0:00:19.5]} 53... Nxg5 {[%clk 0:00:42.9]} 54. Kxg5
{[%clk 0:00:21.4]} 54... a4 {[%clk 0:00:44.5]} 0-1